Cogmind - Beta 15 @@@ ROGUE MODE // 2025.05.18 @ 12:18:36 Player: Demo Result: Destroyed by 1P-43N(R) with Subdweller Laser Performance ------------- Evolutions (0) 0 Regions Visited (2) 400 Robots Destroyed (31) 155 Value Destroyed (548) 548 Prototype IDs (0) 0 Alien Tech Used (0) 0 Bonus (0) 0 TOTAL SCORE: 1103 Bonus ------- None Cogmind --------- Core Integrity 0/250 Matter 295/300 Energy 170/170 System Corruption 0% Temperature Cool (6) Movement Rolling (150) Ox4 Location -10/Subcaves Parts ------- > --- POWER (1) -------- Makeshift Power Source > --- PROPULSION (2) --- Subdweller Monowheel > --- UTILITY (2) ------ Huge Storage Unit Targeting Computer > --- WEAPON (2) ------- Light Assault Rifle Light Assault Rifle > --- INVENTORY (25) --- Light Ion Engine Light Ion Engine Subdweller Power Source Light Treads Wheel Wheel Wheel Wheel Wheel Improved Heat Sink Huge Storage Unit Medium Matter Pod (100) Large Matter Pod (150) Large Matter Pod (150) Structural Scanner Signal Interpreter Seismic Detector Transport Network Coupler Targeting Computer EM Pulse Gun Small Laser Small Laser Mining Laser Peak State ------------ > --- POWER ------------ Makeshift Power Source > --- PROPULSION ------- Wheel Subdweller Monowheel > --- UTILITY ---------- Huge Storage Unit Targeting Computer > --- WEAPON ----------- Light Assault Rifle Light Assault Rifle > --- INVENTORY -------- Light Ion Engine Light Ion Engine Subdweller Power Source Light Treads Wheel Wheel Wheel Wheel Wheel Improved Heat Sink Huge Storage Unit Medium Matter Pod Large Matter Pod Large Matter Pod Structural Scanner Signal Interpreter Seismic Detector Transport Network Coupler Targeting Computer EM Pulse Gun Small Laser Small Laser Mining Laser [Rating: 13] Favorites ----------- Power Light Ion Engine Engine Light Ion Engine Propulsion Wheel Treads Light Treads Wheel Wheel Utility Huge Storage Unit Device Seismic Detector Storage Huge Storage Unit Processor Targeting Computer Weapon Light Assault Rifle Energy Gun Small Laser Ballistic Gun Light Assault Rifle Special Weapon Mining Laser Build | -11 -10 -10 ------- Run | Yrd Mat Sub Slots Evolved . | . . . Power . | . . . Propulsion . | . . . Utility . | . . . Weapon . | . . . Parts Attached 28 | 7 10 11 Power 6 | 1 2 3 Engine 6 | 1 2 3 Core . | . . . Reactor . | . . . Propulsion 10 | 2 3 5 Treads 3 | 1 1 1 Leg . | . . . Wheel 7 | 1 2 4 Hover . | . . . Flight . | . . . Utility 5 | 2 3 . Device 2 | 1 1 . Storage 2 | 1 1 . Processor 1 | . 1 . Hackware . | . . . Protection . | . . . Artifact . | . . . Weapon 7 | 2 2 3 Energy Gun 2 | 1 1 . Energy Cannon . | . . . Ballistic Gun 4 | 1 1 2 Ballistic Cannon . | . . . Launcher . | . . . Special Weapon 1 | . . 1 Impact Weapon . | . . . Slashing Weapon . | . . . Piercing Weapon . | . . . Special Melee Weapon . | . . . Unidentified Prototypes . | . . . Parts Lost 11 | . 4 7 Power 3 | . 2 1 Propulsion 5 | . . 5 Utility . | . . . Weapon 3 | . 2 1 Highest Loss Streak 3 | . 2 3 To Critical Strikes 2 | . . 2 Average Backups 20 | 5 19 24 Power 1 | . . 2 Propulsion 6 | 3 6 7 Utility 9 | 1 9 10 Weapon 3 | . 2 4 Tool/Special . | . . . Unused Backups 21 | 4 1 16 Power 1 | . . 1 Propulsion 5 | 2 . 3 Utility 13 | 2 1 10 Weapon 2 | . . 2 Tool/Special . | . . . Average Slot Usage (%) 97 | . 95 99 Engine 13 | . 13 13 Treads 8 | . 7 9 Wheel 19 | . 20 17 Device 1 | . 2 . Storage 14 | . 14 14 Processor 10 | . 7 14 Energy Gun 5 | . 7 3 Ballistic Gun 21 | . 20 21 Special Weapon 1 | . . 3 Peak Build Rating 13 | 7 9 13 Average Rating 9 | 5 8 10 On Entrance 5 | . 7 9 Naked Turns . | . . . Heaviest Build 89 | 12 89 87 Greatest Support 36 | 10 20 36 Greatest Overweight (x) 8 | 2 8 8 Average Overweight (x) 4 | . 5 5 Largest Inventory Capacity 25 | 8 25 25 Average Capacity 23 | 7 24 25 Most Carried 25 | 8 25 25 Average Carried 21 | 5 20 24 Final Capacity 25 | 8 25 25 Final Carried 25 | 8 25 23 Class Distribution -------------------- 63% | Scavenger-Mutant 36% | Mutant Dominant Class ---------------- Mutant | -10/Materials Scavenger-Mutant | -10/Subcaves Resources | -11 -10 -10 ----------- Run | Yrd Mat Sub Matter Collected 1181 | 372 608 201 Remotely . | . . . Salvage Created 1168 | 247 701 220 Parts 73 | 19 44 10 Haulers Intercepted 1 | . 1 . Recyclers Shooed 2 | 1 1 . Parts Field Recycled . | . . . Retrieved Matter . | . . . Parts Self-Destructed 4 | . . 4 Prevented . | . . . Kills | -11 -10 -10 ------- Run | Yrd Mat Sub Combat Hostiles Destroyed 14 | . 10 4 Guns 14 | . 10 4 Classes Destroyed 11 | 3 6 2 Worker 3 | 2 1 . Builder 2 | . 2 . Tunneler 5 | 5 . . Hauler 1 | . 1 . Recycler 4 | 1 3 . Operator 1 | . 1 . Watcher 1 | . 1 . Swarmer 3 | . 3 . Grunt 9 | . 7 2 Cobbler 1 | . . 1 Subdweller 2 | . . 2 Best Kill Streak 6 | 6 4 2 Combat Bots Only 3 | . 3 2 Max Kills in Single Turn 1 | 1 1 1 Gunslinging . | . . . Exploded . | . . . Melee . | . . . Uniques/NPCs Destroyed . | . . . Combat | -11 -10 -10 -------- Run | Yrd Mat Sub Hostile Shots Fired 132 | . 80 52 Missed 35 | . 20 15 Hits 97 | . 60 37 Projectile 97 | . 60 37 Critical Strikes 7 | . 4 3 Damage Taken 1345 | . 669 676 Core 254 | . 107 147 Absorbed by Shields . | . . . Core Remaining (%) 100 | 100 . . Volleys Fired 112 | 12 62 38 Largest 2 | 2 2 2 Hottest 100 | 60 60 100 Shots Fired 213 | 24 124 65 Gun 202 | 24 124 54 Cannon . | . . . Launcher . | . . . Special 11 | . . 11 Kinetic 156 | 12 96 48 Thermal 39 | . 22 17 Explosive . | . . . Electromagnetic 18 | 12 6 . Robot Hit Streak 18 | 9 14 18 Robot Miss Streak 3 | 1 3 1 Penetration Max . | . . . Secondary Targets 1 | . 1 . Max Gunslinging Chain 1 | . 1 . Shots Hit Robots 142 | 15 86 41 Core Hits 60 | 9 34 17 Critical Kills . | . . . Critical Parts Destroyed 2 | . 2 . Critical Strikes 2 | . 2 . Destroy 2 | . 2 . Melee Attacks . | . . . Impact . | . . . Slashing . | . . . Piercing . | . . . Sneak Attacks . | . . . Combat Hostiles . | . . . Follow-up Attacks . | . . . Damage Inflicted 1500 | 175 952 373 Guns 1500 | 175 952 373 Cannons . | . . . Explosions . | . . . Melee . | . . . Ramming . | . . . Kinetic 1149 | 58 774 317 Thermal 219 | . 163 56 Explosive . | . . . Electromagnetic 132 | 117 15 . Impact . | . . . Slashing . | . . . Piercing . | . . . Highest Corruption . | . . . Average Corruption . | . . . Corruption Purged . | . . . Corruption Blocked . | . . . Overload Shots . | . . . Overflow Damage . | . . . Projectiles . | . . . Explosions . | . . . Melee . | . . . Knockbacks . | . . . Impact . | . . . Kinetic . | . . . Secondary . | . . . Self-Inflicted Damage . | . . . Shots . | . . . Rammed . | . . . Targets Rammed . | . . . Kicked . | . . . Crushed . | . . . Highest Temperature 144 | 20 144 . Average Temperature 46 | 9 58 . Received Heat Transfer 438 | . 318 120 Siege Activations . | . . . Martial Activations . | . . . Shielding Activations . | . . . Robots Disrupted . | . . . Combat Hostiles . | . . . Robots Corrupted . | . . . Combat Hostiles . | . . . Parts Fried . | . . . Impact Corruptions . | . . . Robots Melted . | . . . Combat Hostiles . | . . . Parts Melted . | . . . Heat Transferred 500 | . 375 125 Parts Sabotaged . | . . . Parts Stolen . | . . . Parts Stripped . | . . . Power Chain Reactions . | . . . Alert | -11 -10 -10 ------- Run | Yrd Mat Sub Maximum Alert Level . | . . . Low Security (%) 100 | 100 100 . Level 1 . | . . . Level 2 . | . . . Level 3 . | . . . Level 4 . | . . . Level 5 . | . . . High Security . | . . . Max Security . | . . . Peak Influence 86 | 20 86 . Initial . | . . . Average 27 | 4 30 . Influence Increases 385 | 40 305 40 Destroy 0b10 Robot/C 240 | . 200 40 Destroy 0b10 Robot/NC 85 | 40 45 . Destroy Leader 54 | . 54 . Successful Hack 5 | . 5 . Destroy Structure 1 | . 1 . Influence Decreases 385 | 40 297 48 Entered New Map 4 | . . 4 Time Decay 351 | 40 267 44 Lost Part 30 | . 30 . Squads Dispatched 2 | . 2 . Investigation . | . . . Extermination . | . . . Reinforcement 2 | . 2 . Assault . | . . . Garrison . | . . . Intercept . | . . . Searches Triggered . | . . . Construction Impeded . | . . . Haulers Reinforced . | . . . Active Scanning Responses . | . . . Cargo Convoy Interrupts . | . . . Stealth | -11 -10 -10 --------- Run | Yrd Mat Sub Distress Signals 2 | . 2 . Communications Jammed . | . . . Distress Signals . | . . . Times Spotted 24 | . 14 10 Peak Tracking Total 4 | . 4 4 Tactical Retreats . | . . . Traps | -11 -10 -10 ------- Run | Yrd Mat Sub Traps Triggered . | . . . Indirectly . | . . . Trap Hack Attempts . | . . . Triggered . | . . . Disarmed . | . . . Reprogrammed . | . . . Reused . | . . . Traps Extracted . | . . . Installed . | . . . Triggered . | . . . Machines | -11 -10 -10 ---------- Run | Yrd Mat Sub Machines Disabled . | . . . Max in Single Turn . | . . . Machines Repaired . | . . . Machines Dismantled . | . . . Machines Sabotaged . | . . . Overloaded Fab Kills . | . . . Hacking | -11 -10 -10 --------- Run | Yrd Mat Sub Machines Accessed 3 | . 3 . Terminals 2 | . 2 . Fabricators . | . . . Repair Stations . | . . . Recycling Units 1 | . 1 . Scanalyzers . | . . . Garrison Access . | . . . Total Hacks 5 | . 5 . Successful 2 | . 2 . Failed 3 | . 3 . Catastrophic 2 | . 2 . Database Lockouts . | . . . Manual 4 | . 4 . Terminals 4 | . 4 . Fabricators . | . . . Repair Stations . | . . . Recycling Units 1 | . 1 . Scanalyzers . | . . . Garrison Access . | . . . Terminal Hacks . | . . . Fabricator Hacks . | . . . Repair Station Hacks . | . . . Recycling Unit Hacks 1 | . 1 . Retrieve Components 1 | . 1 . Scanalyzer . | . . . Garrison Access Hacks . | . . . Unauthorized Hacks 1 | . 1 . Terminals 1 | . 1 . Botnet 1 | . 1 . Fabricators . | . . . Repair Stations . | . . . Recycling Units . | . . . Scanalyzers . | . . . Garrison Access . | . . . Data Cores Recovered 1 | . 1 . Used . | . . . Hacking Detections 3 | . 3 . Full Trace Events . | . . . Feedback Events . | . . . Feedback Blocked . | . . . Robot Schematics Acquired . | . . . Robots Built . | . . . Authchips . | . . . Time . | . . . Total Robot Build Rating . | . . . Part Schematics Acquired . | . . . Parts Built . | . . . Authchips . | . . . Time . | . . . Total Part Build Rating . | . . . Parts Repaired . | . . . Time . | . . . Parts Recycled . | . . . Recycled Matter . | . . . Retrieved Matter . | . . . Retrieved Components 10 | . 10 . Parts Scanalyzed . | . . . Part Schematics Acquired . | . . . Parts Damaged . | . . . Bothacking | -11 -10 -10 ------------ Run | Yrd Mat Sub Used RIF Installer . | . . . Robots Hacked . | . . . Non-combat . | . . . Combat . | . . . Robot Hacks Applied . | . . . Relay Couplers Released . | . . . Fabnet Peak Effective % . | . . . Robots Rewired . | . . . Allies Hacked . | . . . Hacks Repelled . | . . . Allies | -11 -10 -10 -------- Run | Yrd Mat Sub Total Allies . | . . . Largest Group . | . . . Highest-Rated Group . | . . . Highest-Rated Ally . | . . . Total Orders . | . . . Ally Attacks . | . . . Total Damage . | . . . Kills . | . . . Allies Corrupted . | . . . Allies Melted . | . . . Intel | -11 -10 -10 ------- Run | Yrd Mat Sub Active Infowar (turns) 102 | . 102 . Structural 102 | . 102 . Robot Analysis Total . | . . . Derelict Logs Recovered . | . . . Drone Launches . | . . . Drone Recoveries . | . . . Exploration | -11 -10 -10 ------------- Run | Yrd Mat Sub Turns Passed 2246 | 175 1061 1010 Spaces Moved 1141 | 131 506 504 Core 14 | 14 . . Treads . | . . . Legs . | . . . Wheels 1127 | 117 506 504 Hover . | . . . Flight . | . . . Fastest Speed 50 | 50 95 119 Average Speed 153 | 90 156 166 Slowest Speed 200 | 150 200 200 Overloaded Moves . | . . . Propulsion Burnouts . | . . . Robots Hopped . | . . . Potential Cave-ins . | . . . Cave-ins Triggered . | . . . Exploration Rate (%) 31 | 3 63 28 Regions Visited 2 Branch Regions 1 Pre-discovered Areas 1 | . . 1 Known Exits Taken . | . . . Unknown Exits Taken 2 | 1 1 . Scrap Searched . | . . . Spaces Dug 3 | . . 3 Terrain Destroyed 4 | . . 4 Melee . | . . . Projectile 4 | . . 4 AOE . | . . . Terrain Rammed . | . . . Walls Destroyed . | . . . Machines Disabled . | . . . Actions | -11 -10 -10 --------- Run | Yrd Mat Sub Total 1421 | 171 658 592 Wait 80 | . 52 28 Move 1139 | 130 505 504 Hop . | . . . Pick Up 40 | 15 22 3 Fast Attach 10 | 7 2 1 Attach 8 | . 3 5 Detach 1 | . 1 . Swap 19 | . 7 12 Drop 12 | 7 4 1 Fire 112 | 12 62 38 Melee . | . . . Ram . | . . . Kick . | . . . Crush . | . . . Escape Stasis . | . . . Rewire . | . . . Trap . | . . . Miscellaneous . | . . . Route ------- -11/Scrapyard -10/Materials (discovered 3 exits: [*Mat] / [*Min] / [*Sub]) -10/Subcaves History --------- Turn | Location | Event 2 | -11/Scrapyard | Met Revision 17 18 | -11/Scrapyard | Discovered new exit (range 14) 176 | -11/Scrapyard | Entered Materials 301 | -10/Materials | Build established: Mutant 535 | -10/Materials | Discovered new exit (range 5) 1022 | -10/Materials | Discovered new exit (range 4) 1064 | -10/Materials | Build established: Scavenger-Mutant 1071 | -10/Materials | Discovered new exit (range 16) 1237 | -10/Materials | Entered Subcaves 1238 | -10/Subcaves | Approached by a straggling Scientist 1459 | -10/Subcaves | Ambushed by Subdweller buried in earth 1466 | -10/Subcaves | Core integrity fell below 50% 1638 | -10/Subcaves | Shifting Twisted Machinery released Sub. Monowheel 1650 | -10/Subcaves | Learned location of Zion (-6) 1650 | -10/Subcaves | Met a Zionite searching for "candidates" 2146 | -10/Subcaves | Core integrity fell below 20% 2212 | -10/Subcaves | Lost 3 parts (1p2n) 2247 | -10/Subcaves | Destroyed by 1P-43N(R) with Subdweller Laser Last Messages --------------- repair. 02011_ Ion Engine fries itself beyond repair. 02013_ Imp. Ion Engine fries itself beyond repair. AV-OBH(c): "I think it's somewhere northeast of here" 02068_ Sub. Power Source shoots sparks and powers down. 02082_ MS-R87(u) deconstructs Twisted Machinery. AV-OBH(c): "I think it's somewhere east of here" 02143_ AV-OBH(c) destroyed. 02145_ Acquired 30 matter. 02159_ Com. Wheel destroyed. 02175_ Critical hit (Destroy). 02175_ Sub. Power Source destroyed. 02181_ Sub. Monowheel destroyed. 02196_ Acquired 10 matter. 02218_ Acquired Mak. Power Source. 02245_ Wheel destroyed. Map ----- +----------------------------------------------------+ | ### #####???## ## " ### #? | | # ##?## ## ## "####?# ## | | # #?# %=####% ##????# "# | | ### ##??# #????##"" | | ### ##???# #????#""" | | ### #????## ## ##???##""" | | ## ### #?????## ### #?####""""# | | ?## #?### #?????# ## ###"##""""## | | ???# #?## ####????## ### ##" """"##? | | ??## ### #?????## ### #? | | ## ##????## ## #? | | ## ####% ##?????# # ### #? | | ?## ???# ##??????## ## ##?# ## | | ??## ???# ##????????# #### ##??# | | ???## ### ##??????#### ##??# #??# | | ????# % ###??#### #??# ##??# | | ???# ##"& ##" ##?# ##?# ### | | ???# ## ##??# ## ## #?? | | ???# ##??## ##???##"#" #?# ##?? | | ???#??????####??????## #?# ???? | | ????????????????????# ##?# ???? | | ????????????????????## #??# ???? | | ?????????????????????# ## ##?# #???? | | ???????????????????### ### ### ????? | | ???????????????????# ### ## ????? | | ???????????????????### @ ????? | | ?????????????????????### R ### ?????? | | ???????????????????????## #??# ??????? | | ????????????????????????### #???##????????? | | ??????????????????????????# #?????????????? | | ??????????????????????????# ### ##???###??????? | | ??????????????????????????# #??# ### ##?????? | | ??????????????????????????# ##?# #?????? | | ????????????????????????### ## #??????? | | ????????????????????????# #??????? | | ????????????????????????# #?????? | | ???????????????####????## ## ##???????? | | ???????????????#!%#????# ##???????????? | | ???????????????#&[#????##% ##??????????? | | ??????#####?#####&#?????### #??????????? | | ??????# ### ## !#???????# ### #??????????? | | ??????#% % # ### ##??????# #?# ##?????????? | | ?????## ## ! #?????## ## #?????????? | | ?????# # #?????# #####?????????? | | ?????# # # ##?????### #?????????????? | | ?????# ### ##??????#### ##?????????????? | | ?????## #?## #?###?????# ##??????????????? | | ?????# #??## ### ####??# #???????????????? | | ?????## #???### ##?# #???????????????? | | ?????# #?????## ### #?# #???????????????? | +----------------------------------------------------+ Best States ------------- Heat Dissipation 25 Energy Generation 15 Energy Capacity 250 Matter Stores 300 Matter Capacity 300 Sight Range 16 Terrain Scan Density 10 Evasion (%) 44 Targeting Accuracy 5 Recoil Reduction 2 Item Schematics ----------------- None Robot Schematics ------------------ None Fabricated ------------ Nothing Repaired ---------- Nothing Alien Tech Used ----------------- None Achievements -------------- None Challenges ------------ None Game ------ Seed SkeletonCarbideBroadsword Manual? 0 Play Time 00:12:58 Cumulative 174.2 hours Start 2025.05.18 @ 12:06:12 End 2025.05.18 @ 12:18:36 Sessions 1 Manual Loads 0 Difficulty Rogue Special Mode None Game No. 198 Rogue 198 Adventurer 0 Explorer 0 Win Type - Total 1 Types 1/0/0/0/0/0/0/0/0/0 Lore% 69 Gallery% 69 Achievement% 61 Wizard Run 0 Options --------- Layout 1 ASCII 0 Keyboard 0 Movement Numpad Keybinds 0 Fullscreen 1 Font 24/Smallcaps Map View 50x35 Zoom Use 0% Tactical HUD 1 Map Filters NONE Filters NONE Steam 1 RUN: 199fc119-17a1-432b-8531-0e0c452b49f8